{"text_format":"3","workbook":"xlsx","n_sheets":2,"sheets":["Spese","Categoria"],"not_rendered":{"defined_names":5},"read":"whole","date_system":"1900"}

{"sheet":"Spese","index":0,"n_rows":25,"n_cols":7,"rows_kept":25,"merged":[[0,1,0,5],[1,1,1,5]]}
[null,"BUDGET DI SPESA",{"$nulls":4},{"$f":"TODAY()","v":{"v":44578,"d":"4457800.00%"}}]
[null,"Nome società"]
[null,"Spesa","Categoria","Importo preventivato","Importo effettivo","Differenza (€)","Differenza (%)"]
[null,"Pubblicità","Spese operative",null,null,{"$f":"IFERROR(SUM(Spese[[#This Row],[Importo preventivato]]-Spese[[#This Row],[Importo effettivo]]), \"\")","v":0},{"$f":"IFERROR(SUM(Spese[[#This Row],[Differenza (€)]]/Spese[[#This Row],[Importo preventivato]]),\"\")","v":""}]
[null,"Debiti","Spese operative",null,null,{"$f":"IFERROR(SUM(Spese[[#This Row],[Importo preventivato]]-Spese[[#This Row],[Importo effettivo]]), \"\")","v":0},{"$f":"IFERROR(SUM(Spese[[#This Row],[Differenza (€)]]/Spese[[#This Row],[Importo preventivato]]),\"\")","v":""}]
[null,"Indennità","Spese operative",null,null,{"$f":"IFERROR(SUM(Spese[[#This Row],[Importo preventivato]]-Spese[[#This Row],[Importo effettivo]]), \"\")","v":0},{"$f":"IFERROR(SUM(Spese[[#This Row],[Differenza (€)]]/Spese[[#This Row],[Importo preventivato]]),\"\")","v":""}]
[null,"Forniture","Spese operative",null,null,{"$f":"IFERROR(SUM(Spese[[#This Row],[Importo preventivato]]-Spese[[#This Row],[Importo effettivo]]), \"\")","v":0},{"$f":"IFERROR(SUM(Spese[[#This Row],[Differenza (€)]]/Spese[[#This Row],[Importo preventivato]]),\"\")","v":""}]
[null,"Affrancatura","Spese operative",null,null,{"$f":"IFERROR(SUM(Spese[[#This Row],[Importo preventivato]]-Spese[[#This Row],[Importo effettivo]]), \"\")","v":0},{"$f":"IFERROR(SUM(Spese[[#This Row],[Differenza (€)]]/Spese[[#This Row],[Importo preventivato]]),\"\")","v":""}]
[null,"Affitto o mutuo","Spese operative",null,null,{"$f":"IFERROR(SUM(Spese[[#This Row],[Importo preventivato]]-Spese[[#This Row],[Importo effettivo]]), \"\")","v":0},{"$f":"IFERROR(SUM(Spese[[#This Row],[Differenza (€)]]/Spese[[#This Row],[Importo preventivato]]),\"\")","v":""}]
[null,"Spese di vendita","Spese operative",null,null,{"$f":"IFERROR(SUM(Spese[[#This Row],[Importo preventivato]]-Spese[[#This Row],[Importo effettivo]]), \"\")","v":0},{"$f":"IFERROR(SUM(Spese[[#This Row],[Differenza (€)]]/Spese[[#This Row],[Importo preventivato]]),\"\")","v":""}]
[null,"Imposte","Spese operative",null,null,{"$f":"IFERROR(SUM(Spese[[#This Row],[Importo preventivato]]-Spese[[#This Row],[Importo effettivo]]), \"\")","v":0},{"$f":"IFERROR(SUM(Spese[[#This Row],[Differenza (€)]]/Spese[[#This Row],[Importo preventivato]]),\"\")","v":""}]
[null,"Utenze","Spese operative",null,null,{"$f":"IFERROR(SUM(Spese[[#This Row],[Importo preventivato]]-Spese[[#This Row],[Importo effettivo]]), \"\")","v":0},{"$f":"IFERROR(SUM(Spese[[#This Row],[Differenza (€)]]/Spese[[#This Row],[Importo preventivato]]),\"\")","v":""}]
[null,"Altro","Spese operative",null,null,{"$f":"IFERROR(SUM(Spese[[#This Row],[Importo preventivato]]-Spese[[#This Row],[Importo effettivo]]), \"\")","v":0},{"$f":"IFERROR(SUM(Spese[[#This Row],[Differenza (€)]]/Spese[[#This Row],[Importo preventivato]]),\"\")","v":""}]
[null,"Assicurazione","Spese operative",null,null,{"$f":"IFERROR(SUM(Spese[[#This Row],[Importo preventivato]]-Spese[[#This Row],[Importo effettivo]]), \"\")","v":0},{"$f":"IFERROR(SUM(Spese[[#This Row],[Differenza (€)]]/Spese[[#This Row],[Importo preventivato]]),\"\")","v":""}]
[null,"Interessi","Spese operative",null,null,{"$f":"IFERROR(SUM(Spese[[#This Row],[Importo preventivato]]-Spese[[#This Row],[Importo effettivo]]), \"\")","v":0},{"$f":"IFERROR(SUM(Spese[[#This Row],[Differenza (€)]]/Spese[[#This Row],[Importo preventivato]]),\"\")","v":""}]
[null,"Telefono","Spese operative",null,null,{"$f":"IFERROR(SUM(Spese[[#This Row],[Importo preventivato]]-Spese[[#This Row],[Importo effettivo]]), \"\")","v":0},{"$f":"IFERROR(SUM(Spese[[#This Row],[Differenza (€)]]/Spese[[#This Row],[Importo preventivato]]),\"\")","v":""}]
[null,"Manutenzione e riparazioni","Spese operative",null,null,{"$f":"IFERROR(SUM(Spese[[#This Row],[Importo preventivato]]-Spese[[#This Row],[Importo effettivo]]), \"\")","v":0},{"$f":"IFERROR(SUM(Spese[[#This Row],[Differenza (€)]]/Spese[[#This Row],[Importo preventivato]]),\"\")","v":""}]
[null,"Spese legali","Spese operative",null,null,{"$f":"IFERROR(SUM(Spese[[#This Row],[Importo preventivato]]-Spese[[#This Row],[Importo effettivo]]), \"\")","v":0},{"$f":"IFERROR(SUM(Spese[[#This Row],[Differenza (€)]]/Spese[[#This Row],[Importo preventivato]]),\"\")","v":""}]
[null,"Ammortamento","Spese operative",null,null,{"$f":"IFERROR(SUM(Spese[[#This Row],[Importo preventivato]]-Spese[[#This Row],[Importo effettivo]]), \"\")","v":0},{"$f":"IFERROR(SUM(Spese[[#This Row],[Differenza (€)]]/Spese[[#This Row],[Importo preventivato]]),\"\")","v":""}]
[null,"Spedizioni","Spese operative",null,null,{"$f":"IFERROR(SUM(Spese[[#This Row],[Importo preventivato]]-Spese[[#This Row],[Importo effettivo]]), \"\")","v":0},{"$f":"IFERROR(SUM(Spese[[#This Row],[Differenza (€)]]/Spese[[#This Row],[Importo preventivato]]),\"\")","v":""}]
[null,"Magazzino","Spese operative",null,null,{"$f":"IFERROR(SUM(Spese[[#This Row],[Importo preventivato]]-Spese[[#This Row],[Importo effettivo]]), \"\")","v":0},{"$f":"IFERROR(SUM(Spese[[#This Row],[Differenza (€)]]/Spese[[#This Row],[Importo preventivato]]),\"\")","v":""}]
[null,"Punto vendita","Permesso",null,null,{"$f":"IFERROR(SUM(Spese[[#This Row],[Importo preventivato]]-Spese[[#This Row],[Importo effettivo]]), \"\")","v":0},{"$f":"IFERROR(SUM(Spese[[#This Row],[Differenza (€)]]/Spese[[#This Row],[Importo preventivato]]),\"\")","v":""}]
[null,"Addetti alle vendite","Permesso",null,null,{"$f":"IFERROR(SUM(Spese[[#This Row],[Importo preventivato]]-Spese[[#This Row],[Importo effettivo]]), \"\")","v":0},{"$f":"IFERROR(SUM(Spese[[#This Row],[Differenza (€)]]/Spese[[#This Row],[Importo preventivato]]),\"\")","v":""}]
[null,"Altro","Permesso",null,null,{"$f":"IFERROR(SUM(Spese[[#This Row],[Importo preventivato]]-Spese[[#This Row],[Importo effettivo]]), \"\")","v":0},{"$f":"IFERROR(SUM(Spese[[#This Row],[Differenza (€)]]/Spese[[#This Row],[Importo preventivato]]),\"\")","v":""}]
[null,"Totale spese",null,{"$f":"IFERROR(SUM(Spese[Importo preventivato]), \"\")","v":0},{"$f":"IFERROR(SUM(Spese[Importo effettivo]), \"\")","v":0},{"$f":"IFERROR(SUM(Spese[Differenza (€)]), \"\")","v":0},{"$f":"IFERROR(SUM(Spese[[#Totals],[Differenza (€)]]/Spese[[#Totals],[Importo preventivato]]),\"\")","v":""}]

{"sheet":"Categoria","index":1,"n_rows":4,"n_cols":2,"rows_kept":4}
[null,"Ricerca categorie"]
[null,"Categoria"]
[null,"Spese operative"]
[null,"Permesso"]